Cogmind - Beta 13 @@@ ROGUE MODE // 2024.05.05 @ 23:37:17 Player: Olafz Result: Destroyed by Z8-DFQ(R) with Subdweller Beam Cannon Performance ------------- Evolutions (0) 0 Regions Visited (3) 600 Robots Destroyed (36) 180 Value Destroyed (930) 930 Prototype IDs (0) 0 Alien Tech Used (0) 0 Bonus (0) 0 TOTAL SCORE: 1710 Bonus ------- None Cogmind --------- Core Integrity 0/250 Matter 257/300 Energy 250/250 System Corruption 0% Temperature Cool (9) Movement Walking (190) Ox1 Location -10/Subcaves Parts ------- > --- POWER (1) -------- Ion Engine > --- PROPULSION (2) --- Aluminum Leg Aluminum Leg > --- UTILITY (2) ------ Medium Storage Unit > --- WEAPON (2) ------- Medium Laser Subdweller Shrapnel Launcher > --- INVENTORY (10) --- Ion Engine Aluminum Leg Aluminum Leg Aluminum Leg Aluminum Leg Small Storage Unit Sensor Array ECM Suite Hacking Suite Peak State ------------ > --- POWER ------------ Ion Engine > --- PROPULSION ------- Aluminum Leg Aluminum Leg > --- UTILITY ---------- Improved Heat Sink Small Storage Unit > --- WEAPON ----------- Medium Laser Particle Gun > --- INVENTORY -------- Ion Engine Ion Engine Heat Sink Sensor Array Hacking Suite Medium Laser Medium Laser Assault Rifle [Rating: 11] Favorites ----------- Power Ion Engine Engine Ion Engine Propulsion Aluminum Leg Leg Aluminum Leg Utility Medium Storage Unit Device Improved Heat Sink Storage Medium Storage Unit Weapon Medium Laser Energy Gun Medium Laser Ballistic Gun Assault Rifle Launcher Subdweller Shrapnel Launcher Build | -11 -10 -10 -10 ------- Run | Yrd Mat Min Sub Slots Evolved . | . . . . Power . | . . . . Propulsion . | . . . . Utility . | . . . . Weapon . | . . . . Parts Attached 32 | . 24 7 1 Power 4 | . 3 1 . Engine 4 | . 3 1 . Core . | . . . . Reactor . | . . . . Propulsion 12 | . 8 4 . Treads . | . . . . Leg 12 | . 8 4 . Wheel . | . . . . Hover . | . . . . Flight . | . . . . Utility 4 | . 3 1 . Device 3 | . 2 1 . Storage 1 | . 1 . . Processor . | . . . . Hackware . | . . . . Protection . | . . . . Artifact . | . . . . Weapon 12 | . 10 1 1 Energy Gun 11 | . 10 1 . Energy Cannon . | . . . . Ballistic Gun . | . . . . Ballistic Cannon . | . . . . Launcher 1 | . . . 1 Special Weapon . | . . . . Impact Weapon . | . . . . Slashing Weapon . | . . . . Piercing Weapon . | . . . . Special Melee Weapon . | . . . . Unidentified Prototypes . | . . . . Parts Lost 9 | . 3 4 2 Power 2 | . 1 1 . Propulsion 3 | . 2 1 . Utility 2 | . . 1 1 Weapon 2 | . . 1 1 Highest Loss Streak 2 | . 2 1 2 To Critical Strikes . | . . . . Average Slot Usage (%) 96 | . 90 99 97 Engine 13 | . 13 13 14 Leg 27 | . 26 27 28 Device 11 | . 8 13 11 Storage 14 | . 14 14 14 Energy Gun 26 | . 22 27 25 Ballistic Gun 1 | . 4 . . Naked Turns . | . . . . Heaviest Build 25 | 11 21 21 25 Greatest Support 20 | 20 20 20 20 Greatest Overweight (x) 2 | . 2 2 1 Average Overweight (x) . | . . . . Largest Inventory Capacity 10 | 8 10 10 10 Average Capacity 9 | 8 8 10 10 Most Carried 10 | 6 8 10 10 Average Carried 8 | 6 7 9 9 Final Capacity 10 | 8 10 10 10 Final Carried 9 | 6 8 9 9 Class Distribution -------------------- 73% | Scavenger-Mutant 26% | Mutant Dominant Class ---------------- Mutant | -10/Materials Scavenger-Mutant | -10/Mines Scavenger-Mutant | -10/Subcaves Resources | -11 -10 -10 -10 ----------- Run | Yrd Mat Min Sub Matter Collected 570 | 200 285 85 . Remotely . | . . . . Salvage Created 1298 | . 690 608 . Parts 67 | . 41 26 . Haulers Intercepted 2 | . 2 . . Recyclers Shooed 1 | . 1 . . Parts Field Recycled . | . . . . Retrieved Matter . | . . . . Parts Self-Destructed . | . . . . Prevented . | . . . . Kills | -11 -10 -10 -10 ------- Run | Yrd Mat Min Sub Combat Hostiles Destroyed 28 | . 11 17 . Guns 26 | . 11 15 . Classes Destroyed 8 | . 6 2 . Tunneler 1 | . . 1 . Hauler 2 | . 2 . . Recycler 2 | . 2 . . Operator 1 | . 1 . . Watcher 3 | . 3 . . Swarmer 6 | . 3 3 . Grunt 21 | . 8 13 . Assembled 1 | . . 1 . Best Kill Streak 6 | . 5 6 . Combat Bots Only 5 | . 3 5 . Max Kills in Single Turn 1 | . 1 1 . Gunslinging . | . . . . Exploded . | . . . . Melee . | . . . . Uniques/NPCs Destroyed . | . . . . Combat | -11 -10 -10 -10 -------- Run | Yrd Mat Min Sub Hostile Shots Fired 162 | . 84 72 6 Missed 41 | . 22 18 1 Damage Taken 1434 | . 725 567 142 Core 251 | . 105 116 30 Absorbed by Shields . | . . . . Core Remaining (%) 100 | 100 . . . Volleys Fired 127 | . 77 48 2 Largest 2 | . 2 2 2 Hottest 115 | . 115 115 115 Shots Fired 243 | . 144 95 4 Gun 242 | . 144 95 3 Cannon . | . . . . Launcher 1 | . . . 1 Special . | . . . . Kinetic 43 | . 42 . 1 Thermal 200 | . 102 95 3 Explosive . | . . . . Electromagnetic . | . . . . Robot Hit Streak 11 | . 11 11 3 Robot Miss Streak 4 | . 4 3 1 Penetration Max . | . . . . Secondary Targets 3 | . 2 1 . Max Gunslinging Chain 1 | . 1 1 . Shots Hit Robots 159 | . 92 64 3 Core Hits 61 | . 32 29 . Critical Kills . | . . . . Critical Parts Destroyed . | . . . . Critical Strikes 9 | . 4 5 . Burn 9 | . 4 5 . Melee Attacks . | . . . . Impact . | . . . . Slashing . | . . . . Piercing . | . . . . Sneak Attacks . | . . . . Combat Hostiles . | . . . . Follow-up Attacks . | . . . . Damage Inflicted 2251 | . 1211 954 86 Guns 2154 | . 1209 917 28 Cannons . | . . . . Explosions 58 | . . . 58 Melee . | . . . . Ramming 39 | . 2 37 . Kinetic 406 | . 348 . 58 Thermal 1806 | . 861 917 28 Explosive . | . . . . Electromagnetic . | . . . . Impact . | . . . . Slashing . | . . . . Piercing . | . . . . Highest Corruption . | . . . . Average Corruption . | . . . . Corruption Purged . | . . . . Corruption Blocked . | . . . . Overload Shots . | . . . . Overflow Damage . | . . . . Projectiles . | . . . . Explosions . | . . . . Melee . | . . . . Knockbacks . | . . . . Impact . | . . . . Kinetic . | . . . . Secondary . | . . . . Self-Inflicted Damage . | . . . . Shots . | . . . . Rammed . | . . . . Targets Rammed 12 | . 1 11 . Kicked 12 | . 1 11 . Crushed . | . . . . Highest Temperature 352 | . 352 180 . Average Temperature 72 | . 83 58 . Received Heat Transfer 660 | . 372 243 45 Effects 2 | . 2 . . Interference 2 | . 2 . . Siege Activations . | . . . . Robots Corrupted . | . . . . Combat Hostiles . | . . . . Parts Fried . | . . . . Impact Corruptions . | . . . . Robots Melted 2 | . . 2 . Combat Hostiles 2 | . . 2 . Parts Melted 14 | . 2 12 . Heat Transferred 5325 | . 2476 2775 74 Parts Sabotaged . | . . . . Parts Stolen . | . . . . Parts Stripped . | . . . . Power Chain Reactions . | . . . . Alert | -11 -10 -10 -10 ------- Run | Yrd Mat Min Sub Peak Influence 298 | . 298 175 . Initial 69 | . . 69 . Average 85 | . 131 60 . Maximum Alert Level 1 | . 1 . . Low Security (%) 97 | 100 93 100 . Level 1 2 | . 6 . . Level 2 . | . . . . Level 3 . | . . . . Level 4 . | . . . . Level 5 . | . . . . High Security . | . . . . Max Security . | . . . . Squads Dispatched 4 | . 4 . . Investigation 1 | . 1 . . Extermination . | . . . . Reinforcement 3 | . 3 . . Assault . | . . . . Garrison . | . . . . Intercept . | . . . . Searches Triggered . | . . . . Construction Impeded . | . . . . Haulers Reinforced . | . . . . Active Scanning Responses . | . . . . Cargo Convoy Interrupts . | . . . . Stealth | -11 -10 -10 -10 --------- Run | Yrd Mat Min Sub Distress Signals 2 | . 1 1 . Communications Jammed . | . . . . Distress Signals . | . . . . Times Spotted 36 | . 18 17 1 Peak Tracking Total 4 | . 4 3 1 Tactical Retreats . | . . . . Traps | -11 -10 -10 -10 ------- Run | Yrd Mat Min Sub Traps Triggered 6 | . 6 . . Indirectly . | . . . . Trap Hack Attempts . | . . . . Triggered . | . . . . Disarmed . | . . . . Reprogrammed . | . . . . Reused . | . . . . Traps Extracted . | . . . . Installed . | . . . . Triggered . | . . . . Machines | -11 -10 -10 -10 ---------- Run | Yrd Mat Min Sub Machines Disabled 3 | . 1 2 . Max in Single Turn 1 | . 1 1 . Machines Repaired . | . . . . Machines Dismantled . | . . . . Machines Sabotaged . | . . . . Overloaded Fab Kills . | . . . . Hacking | -11 -10 -10 -10 --------- Run | Yrd Mat Min Sub Machines Accessed 3 | . 3 . . Terminals 3 | . 3 . . Fabricators . | . . . . Repair Stations . | . . . . Recycling Units . | . . . . Scanalyzers . | . . . . Garrison Access . | . . . . Total Hacks 4 | . 4 . . Successful 3 | . 3 . . Failed 1 | . 1 . . Catastrophic . | . . . . Database Lockouts . | . . . . Manual . | . . . . Terminals 4 | . 4 . . Fabricators . | . . . . Repair Stations . | . . . . Recycling Units . | . . . . Scanalyzers . | . . . . Garrison Access . | . . . . Terminal Hacks 3 | . 3 . . Level Access Points 1 | . 1 . . Branch Access Points 1 | . 1 . . Alert Level 1 | . 1 . . Fabricator Hacks . | . . . . Repair Station Hacks . | . . . . Recycling Unit Hacks . | . . . . Scanalyzer . | . . . . Garrison Access Hacks . | . . . . Unauthorized Hacks . | . . . . Terminals . | . . . . Fabricators . | . . . . Repair Stations . | . . . . Recycling Units . | . . . . Scanalyzers . | . . . . Garrison Access . | . . . . Data Cores Recovered . | . . . . Used . | . . . . Hacking Detections 1 | . 1 . . Full Trace Events . | . . . . Feedback Events . | . . . . Feedback Blocked . | . . . . Robot Schematics Acquired . | . . . . Robots Built . | . . . . Authchips . | . . . . Time . | . . . . Total Robot Build Rating . | . . . . Part Schematics Acquired . | . . . . Parts Built . | . . . . Authchips . | . . . . Time . | . . . . Total Part Build Rating . | . . . . Parts Repaired . | . . . . Time . | . . . . Parts Recycled . | . . . . Recycled Matter . | . . . . Retrieved Matter . | . . . . Retrieved Components . | . . . . Parts Scanalyzed . | . . . . Part Schematics Acquired . | . . . . Parts Damaged . | . . . . Bothacking | -11 -10 -10 -10 ------------ Run | Yrd Mat Min Sub Used RIF Installer . | . . . . Robots Hacked . | . . . . Non-combat . | . . . . Combat . | . . . . Robot Hacks Applied . | . . . . Relay Couplers Released . | . . . . Fabnet Peak Effective % . | . . . . Robots Rewired . | . . . . Allies Hacked . | . . . . Hacks Repelled . | . . . . Allies | -11 -10 -10 -10 -------- Run | Yrd Mat Min Sub Total Allies 1 | . . 1 . Largest Group 1 | . . 1 . Highest-Rated Group 31 | . . 31 . Highest-Rated Ally 31 | . . 31 . Total Orders . | . . . . Ally Attacks . | . . . . Total Damage . | . . . . Kills . | . . . . Allies Corrupted . | . . . . Allies Melted . | . . . . Intel | -11 -10 -10 -10 ------- Run | Yrd Mat Min Sub Robot Analysis Total . | . . . . Derelict Logs Recovered . | . . . . Drone Launches . | . . . . Drone Recoveries . | . . . . Exploration | -11 -10 -10 -10 ------------- Run | Yrd Mat Min Sub Turns Passed 2263 | 3 771 1429 60 Spaces Moved 771 | 3 388 352 28 Core 2 | . 2 . . Treads . | . . . . Legs 769 | 3 386 352 28 Wheels . | . . . . Hover . | . . . . Flight . | . . . . Fastest Speed 120 | 120 120 120 120 Average Speed 158 | 120 129 189 187 Slowest Speed 260 | 120 190 260 190 Overloaded Moves . | . . . . Propulsion Burnouts . | . . . . Robots Hopped . | . . . . Cave-ins Triggered . | . . . . Exploration Rate (%) 38 | 2 80 68 4 Regions Visited 3 Branch Regions 2 Pre-discovered Areas . | . . . . Known Exits Taken 1 | . 1 . . Unknown Exits Taken 2 | 1 . 1 . Scrap Searched 1 | . . 1 . Spaces Dug . | . . . . Terrain Destroyed 14 | . . . 14 Melee . | . . . . Projectile . | . . . . AOE 14 | . . . 14 Terrain Rammed . | . . . . Walls Destroyed . | . . . . Machines Disabled . | . . . . Actions | -11 -10 -10 -10 --------- Run | Yrd Mat Min Sub Total 1562 | 2 510 1017 33 Wait 594 | . . 593 1 Move 768 | 2 387 351 28 Hop . | . . . . Pick Up 13 | . 8 4 1 Fast Attach 16 | . 15 1 . Attach 5 | . 1 3 1 Detach . | . . . . Swap 11 | . 8 3 . Drop 16 | . 13 3 . Fire 127 | . 77 48 2 Melee . | . . . . Ram . | . . . . Kick 12 | . 1 11 . Crush . | . . . . Escape Stasis . | . . . . Rewire . | . . . . Trap . | . . . . Miscellaneous . | . . . . Route ------- -11/Scrapyard -10/Materials (discovered 5 exits: *Mat x3 / *Min x2) -10/Mines -10/Subcaves History --------- Turn | Location | Event 1 | -11/Scrapyard | Discovered new exit (range 2) 4 | -11/Scrapyard | Entered Materials 12 | -10/Materials | Identified exit to Mines 311 | -10/Materials | Build established: Mutant 352 | -10/Materials | Discovered new exit (range 10) 385 | -10/Materials | Identified exit to Materials 775 | -10/Materials | Entered Mines 784 | -10/Mines | Met a Derelict bent on vengeance 855 | -10/Mines | Excavation squad dispatched 855 | -10/Mines | A large section of the Mines collapsed 909 | -10/Mines | Build established: Scavenger-Mutant 1105 | -10/Mines | Excavation squad dispatched 1355 | -10/Mines | Excavation squad dispatched 1466 | -10/Mines | Core integrity fell below 50% 1600 | -10/Mines | Received a Mining Laser from a helpful Derelict 1605 | -10/Mines | Excavation squad dispatched 1855 | -10/Mines | Excavation squad dispatched 2082 | -10/Mines | Core integrity fell below 20% 2105 | -10/Mines | Excavation squad dispatched 2187 | -10/Mines | Discovered new exit (range 9) 2204 | -10/Mines | Entered Subcaves 2206 | -10/Subcaves | Shifting Twisted Machinery released Sub. Shrapnel Launcher 2252 | -10/Subcaves | Shifting Twisted Machinery released Barrage Gun 2264 | -10/Subcaves | Destroyed by Z8-DFQ(R) with Subdweller Beam Cannon Last Messages --------------- Kicked T-07 Excavator. T-07 Excavator sends out distress signal. Kicked T-07 Excavator out of the way. G-34 Mercenary suffers critical hit (Burn). G-34 Mercenary heat spikes uncontrollably. G-34 Mercenary heat damages core (-3). Sml. Laser melted. Heat Sink melted. Kicked T-07 Excavator. Dropped Aluminum Leg. Kicked T-07 Excavator. EXIT=FOUND LOCATION=UNKNOWN AMBIENT_HEAT=-10 GOAL=ESCAPE Sub. Shrapnel Launcher falls loose from the Twisted Machinery. Acquired Sub. Shrapnel Launcher. Barrage Gun falls loose from the Twisted Machinery. Heat Sink destroyed. Particle Gun destroyed. Map ----- +----------------------------------------------------+ | ???????????????????#?????????????????????????????? | | ???????????????????# ????????????????????????????? | | ??????????????????? ? ?????????????????????????? | | ??????????????????? " ?????????????????????????? | | ???????????????????#""" ?????????????????????????? | | ??????????????????? " ?????????????????????????? | | ???????????????????? ""?????????????????????????? | | ???????????????????? ""?????????????????????????? | | ??????##????????????# "#?????????????????????????? | | ??????# ??????????## #?????????????????????????? | | ??????# ??????????# #?????????????????????????? | | ??????# ?????????## #?????????????????????????? | | ??????# ######??## ##????????????????????????? | | ??????# #?##""" ##???????????????????????? | | ??????# ###""" ""##??????????????????????? | | ??????# # "" ## ""#??????????????????????? | | ??????????# " "## ##??##??????????????????? | | ??????????## # ## ## ##?????????????????? | | ???????????## #####"## # #?????????????????? | | ????????????###????## ###"[ ##????????????????? | | ????????????????????## ##" ##??? ??????????? | | ?????????????????????## " "" ## ?????????? | | ?????????????????????## " " ?????????? | | ????????????????????## #????????????? | | ????????????????????# #?????????????? | | ???????????????????# ## @ ## #?????????????? | | ??????????????????# ?### #????#?????????????? | | ????????????????? ????# #????????????????? | | ???????????????? ?????#; ##????????????????? | | ?????????????? ??????#; #?????????????????? | | ????????????? ??????? ;#?????????????????? | | ???????????? ???????? ;#?????????????????? | | ??????????? ???????? R;;#?????????????????? | | ???????????? ????????? ; #?????????????????? | | ????????????????????????#; ;;#?????????????????? | | ?????????????????????????;;; ##?????????????????? | | ?????????????????????????### #??????????????????? | | ???????????????????????????? ??????????????????? | | ???????????????????????????? ??????????????????? | | ????????????????????????????? ???????????????????? | | ?????????????????????????????????????????????????? | | ?????????????????????????????????????????????????? | | ?????????????????????????????????????????????????? | | ?????????????????????????????????????????????????? | | ?????????????????????????????????????????????????? | | ?????????????????????????????????????????????????? | | ?????????????????????????????????????????????????? | | ?????????????????????????????????????????????????? | | ?????????????????????????????????????????????????? | | ?????????????????????????????????????????????????? | +----------------------------------------------------+ Best States ------------- Heat Dissipation 39 Energy Generation 10 Energy Capacity 250 Matter Stores 300 Matter Capacity 300 Sight Range 16 Terrain Scan Density 10 Evasion (%) 55 Item Schematics ----------------- None Robot Schematics ------------------ None Fabricated ------------ Nothing Alien Tech Used ----------------- None Achievements -------------- None Challenges ------------ None Game ------ Seed ThunderLightDiverter Manual? 0 Play Time 00:13:05 Cumulative 115.1 hours Start 2024.05.05 @ 23:13:51 End 2024.05.05 @ 23:37:17 Sessions 1 Manual Loads 0 Difficulty Rogue Special Mode None Game No. 208 Rogue 206 Adventurer 2 Explorer 0 Win Type - Total 3 Types 2/0/0/1/0/0/0/0/0 Lore% 58 Gallery% 58 Achievement% 45 Wizard Run 0 Options --------- Layout 0 ASCII 0 Keyboard 1 Movement Numpad Keybinds 1 Fullscreen 2 Font 18/SmallcapsGlow Map View 76x50 Zoom Use 0% Tactical HUD 1 Map Filters NONE Filters NONE Steam 1 RUN: f127abf5-5d79-46df-8c37-84aacce24469